[Event "MČR v bleskovém šachu družstev 2019"]
[Site "Teplice, Czech Republic"]
[Date "2019.09.14"]
[Round "3.8"]
[White "Routner, Jakub"]
[Black "Postupa, Pavel"]
[Result "1/2-1/2"]
[TimeControl "3 mim. + 2 s"]
[WhiteFideId "322245"]
[BlackFideId "326410"]
[WhiteElo "2138"]
[BlackElo "2184"]

1. e4 {[%clk 00:03:02]} {[%emt 00:00:01]} c5 {[%clk 00:03:03]} {[%emt
00:00:02]} 2. Nc3 {[%clk 00:03:03]} {[%emt 00:00:01]} d6 {[%clk 00:03:04]} 3.
g3 {[%clk 00:03:04]} g6 {[%clk 00:03:05]} {[%emt 00:00:03]} 4. Bg2 {[%clk
00:03:06]} Bg7 5. d3 {[%emt 00:00:02]} Nc6 {[%clk 00:03:07]} 6. Be3 {[%clk
00:03:08]} Rb8 {[%clk 00:03:01]} {[%emt 00:00:08]} 7. Qd2 {[%clk 00:03:10]}
{[%emt 00:00:01]} e6 {[%clk 00:02:55]} {[%emt 00:00:06]} 8. Nge2 {[%clk
00:03:07]} {[%emt 00:00:04]} b5 {[%clk 00:02:55]} {[%emt 00:00:05]} 9. Nd1
{[%clk 00:03:08]} {[%emt 00:00:02]} b4 {[%clk 00:02:52]} {[%emt 00:00:04]} 10.
f4 {[%clk 00:03:03]} {[%emt 00:00:06]} Nge7 {[%clk 00:02:48]} {[%emt 00:00:06]}
11. O-O {[%clk 00:03:03]} {[%emt 00:00:02]} f5 {[%clk 00:02:42]} {[%emt
00:00:08]} 12. e5 {[%clk 00:02:55]} {[%emt 00:00:11]} O-O {[%clk 00:02:19]}
{[%emt 00:00:25]} 13. exd6 {[%clk 00:02:52]} {[%emt 00:00:05]} Qxd6 {[%clk
00:02:19]} {[%emt 00:00:02]} 14. c3 {[%clk 00:02:25]} {[%emt 00:00:31]} Nd5
{[%clk 00:02:19]} {[%emt 00:00:04]} 15. Bf2 {[%clk 00:02:23]} {[%emt 00:00:05]}
Ba6 {[%clk 00:02:14]} {[%emt 00:00:06]} 16. Ne3 {[%clk 00:01:48]} {[%emt
00:00:38]} Rfd8 {[%clk 00:01:50]} {[%emt 00:00:26]} 17. Nxd5 {[%clk 00:01:36]}
{[%emt 00:00:14]} exd5 {[%clk 00:01:46]} {[%emt 00:00:06]} 18. Rfe1 {[%clk
00:01:29]} {[%emt 00:00:09]} Bf6 {[%clk 00:00:58]} {[%emt 00:00:50]} 19. Kh1
{[%clk 00:01:30]} {[%emt 00:00:02]} Kg7 {[%clk 00:00:59]} 20. Ng1 {[%clk
00:01:31]} {[%emt 00:00:01]} Rd7 {[%clk 00:00:53]} {[%emt 00:00:08]} 21. Nf3
{[%clk 00:01:31]} {[%emt 00:00:02]} bxc3 {[%clk 00:00:51]} {[%emt 00:00:03]} 22.
bxc3 {[%clk 00:01:32]} {[%emt 00:00:01]} Rdb7 {[%clk 00:00:52]} 23. Rac1 {[%clk
00:01:09]} {[%emt 00:00:26]} Rb2 {[%emt 00:00:01]} 24. Rc2 Rb1 {[%clk
00:00:45]} {[%emt 00:00:10]} 25. Rcc1 {[%clk 00:00:51]} {[%emt 00:00:22]} R8b2
{[%clk 00:00:38]} {[%emt 00:00:08]} 26. Rxb1 {[%clk 00:00:48]} {[%emt
00:00:05]} Rxd2 {[%clk 00:00:39]} 27. Nxd2 {[%clk 00:00:49]} {[%emt 00:00:02]}
Bxd3 {[%clk 00:00:39]} {[%emt 00:00:02]} 28. Rbc1 {[%clk 00:00:51]} Be4 {[%clk
00:00:34]} {[%emt 00:00:08]} 29. c4 {[%clk 00:00:39]} {[%emt 00:00:14]} Bxg2+
{[%clk 00:00:34]} {[%emt 00:00:02]} 30. Kxg2 {[%clk 00:00:40]} {[%emt
00:00:01]} d4 {[%clk 00:00:32]} {[%emt 00:00:04]} 31. Nf3 {[%clk 00:00:40]}
{[%emt 00:00:01]} Nb4 {[%clk 00:00:33]} {[%emt 00:00:01]} 32. Re2 {[%clk
00:00:34]} {[%emt 00:00:08]} d3 {[%clk 00:00:30]} {[%emt 00:00:04]} 33. Rd2
{[%clk 00:00:33]} {[%emt 00:00:03]} Nc6 {[%clk 00:00:24]} {[%emt 00:00:08]} 34.
Rcd1 {[%clk 00:00:32]} {[%emt 00:00:03]} Nb4 {[%clk 00:00:23]} {[%emt
00:00:03]} 35. Ne1 {[%clk 00:00:21]} {[%emt 00:00:13]} Qc6+ {[%clk 00:00:24]}
{[%emt 00:00:01]} 36. Kg1 {[%clk 00:00:22]} Bd4 {[%clk 00:00:24]} {[%emt
00:00:02]} 37. Nxd3 {[%clk 00:00:22]} {[%emt 00:00:02]} Nxd3 {[%clk 00:00:25]}
{[%emt 00:00:02]} 38. Rxd3 {[%clk 00:00:22]} {[%emt 00:00:02]} Qe4 {[%clk
00:00:23]} {[%emt 00:00:03]} 39. Bxd4+ {[%clk 00:00:22]} {[%emt 00:00:02]} cxd4
{[%clk 00:00:24]} {[%emt 00:00:01]} 40. Rxd4 {[%clk 00:00:23]} {[%emt
00:00:01]} Qe3+ {[%clk 00:00:24]} {[%emt 00:00:02]} 41. Kg2 {[%clk 00:00:20]}
{[%emt 00:00:04]} Qe2+ {[%clk 00:00:25]} {[%emt 00:00:01]} 42. Kg1 {[%clk
00:00:21]} Qe3+ {[%clk 00:00:22]} {[%emt 00:00:05]} 43. Kg2 {[%clk 00:00:21]}
{[%emt 00:00:03]} Qe2+ {[%clk 00:00:17]} {[%emt 00:00:07]} 1/2-1/2

[Event "MČR v bleskovém šachu družstev 2019"]
[Site "Teplice, Czech Republic"]
[Date "2019.09.14"]
[Round "3.9"]
[White "Liska, Jiri"]
[Black "Babicka, Michal"]
[Result "1-0"]
[TimeControl "3 mim. + 2 s"]
[WhiteTitle "FM"]
[WhiteElo "2241"]
[BlackElo "2076"]

1. c4 {[%clk 00:03:01]} {[%emt 00:00:02]} e5 {[%clk 00:03:02]} {[%emt
00:00:02]} 2. Nc3 {[%clk 00:03:01]} {[%emt 00:00:02]} Nf6 {[%clk 00:03:03]}
{[%emt 00:00:01]} 3. g3 {[%clk 00:03:00]} {[%emt 00:00:03]} d5 {[%clk
00:03:05]} {[%emt 00:00:01]} 4. cxd5 {[%clk 00:02:59]} {[%emt 00:00:03]} Nxd5
{[%clk 00:03:05]} {[%emt 00:00:01]} 5. Bg2 {[%clk 00:03:00]} {[%emt 00:00:01]}
Nb6 {[%clk 00:03:06]} 6. d3 {[%clk 00:02:51]} {[%emt 00:00:11]} Nc6 {[%clk
00:03:06]} {[%emt 00:00:03]} 7. a3 {[%clk 00:02:46]} {[%emt 00:00:08]} Be7
{[%clk 00:03:06]} {[%emt 00:00:02]} 8. b4 {[%clk 00:02:45]} {[%emt 00:00:02]}
a6 {[%clk 00:03:06]} {[%emt 00:00:03]} 9. Bb2 {[%clk 00:02:44]} {[%emt
00:00:02]} O-O {[%clk 00:03:05]} {[%emt 00:00:03]} 10. Nf3 {[%clk 00:02:42]}
{[%emt 00:00:04]} Be6 {[%clk 00:02:56]} {[%emt 00:00:12]} 11. O-O {[%clk
00:02:42]} {[%emt 00:00:02]} f5 {[%clk 00:02:20]} {[%emt 00:00:38]} 12. Rc1
{[%clk 00:02:29]} {[%emt 00:00:15]} Bf6 {[%clk 00:02:15]} {[%emt 00:00:06]} 13.
Nd2 {[%clk 00:02:11]} {[%emt 00:00:21]} Nd5 {[%clk 00:01:42]} {[%emt 00:00:34]}
14. Nb3 {[%clk 00:02:01]} {[%emt 00:00:12]} Nxc3 {[%clk 00:01:24]} {[%emt
00:00:21]} 15. Bxc3 {[%clk 00:02:01]} {[%emt 00:00:02]} e4 {[%clk 00:01:22]}
{[%emt 00:00:04]} 16. Nc5 {[%clk 00:01:58]} {[%emt 00:00:05]} Bc8 {[%clk
00:00:49]} {[%emt 00:00:35]} 17. Qb3+ {[%clk 00:01:54]} {[%emt 00:00:06]} Kh8
{[%clk 00:00:49]} {[%emt 00:00:02]} 18. dxe4 {[%clk 00:01:52]} {[%emt
00:00:04]} Bxc3 {[%clk 00:00:34]} {[%emt 00:00:17]} 19. Qxc3 {[%clk 00:01:53]}
{[%emt 00:00:01]} fxe4 {[%clk 00:00:32]} {[%emt 00:00:04]} 20. Nxe4 {[%clk
00:01:43]} {[%emt 00:00:11]} Qe7 {[%clk 00:00:27]} {[%emt 00:00:07]} 21. h4
{[%clk 00:01:31]} {[%emt 00:00:16]} h6 {[%clk 00:00:21]} {[%emt 00:00:08]} 22.
Rcd1 {[%clk 00:01:19]} {[%emt 00:00:14]} Rf7 {[%clk 00:00:19]} {[%emt
00:00:04]} 23. Qc5 {[%clk 00:01:12]} {[%emt 00:00:08]} Bf5 {[%clk 00:00:08]}
{[%emt 00:00:13]} 24. Qxe7 {[%clk 00:01:10]} {[%emt 00:00:05]} Rxe7 {[%clk
00:00:10]} 25. Nc5 {[%clk 00:01:10]} {[%emt 00:00:02]} Rb8 {[%clk 00:00:04]}
{[%emt 00:00:07]} 26. Nxb7 {[%clk 00:01:10]} {[%emt 00:00:02]} Ne5 {[%clk
00:00:03]} {[%emt 00:00:03]} 27. Nc5 {[%clk 00:01:07]} {[%emt 00:00:05]} Nc4
{[%clk 00:00:03]} {[%emt 00:00:02]} 28. Nxa6 {[%emt 00:00:13]} Rb6 {[%clk
00:00:04]} 29. Nc5 {[%clk 00:00:46]} {[%emt 00:00:12]} Rxe2 {[%clk 00:00:05]}
{[%emt 00:00:01]} 30. Ra1 {[%clk 00:00:41]} {[%emt 00:00:07]} Rb2 {[%clk
00:00:03]} {[%emt 00:00:04]} 31. Na4 {[%clk 00:00:40]} {[%emt 00:00:03]} Re6
{[%clk 00:00:00]} {[%emt 00:00:02]} 1-0

[Event "MČR v bleskovém šachu družstev 2019"]
[Site "Teplice, Czech Republic"]
[Date "2019.09.14"]
[Round "3.10"]
[White "Mach, Petr"]
[Black "Vltavsky, Vladimir"]
[Result "1-0"]
[TimeControl "3 mim. + 2 s"]
[WhiteElo "1961"]
[BlackElo "2252"]

1. Nf3 {[%clk 00:03:03]} Nf6 {[%clk 00:03:03]} {[%emt 00:00:02]} 2. c4 {[%clk
00:03:04]} {[%emt 00:00:01]} e6 {[%clk 00:03:03]} {[%emt 00:00:02]} 3. Nc3
{[%clk 00:02:56]} {[%emt 00:00:09]} c5 {[%clk 00:03:03]} {[%emt 00:00:02]} 4.
d4 {[%clk 00:02:46]} {[%emt 00:00:12]} cxd4 {[%clk 00:03:03]} {[%emt 00:00:02]}
5. Nxd4 {[%clk 00:02:47]} {[%emt 00:00:02]} a6 {[%clk 00:03:01]} {[%emt
00:00:03]} 6. Bg5 {[%clk 00:02:34]} {[%emt 00:00:15]} Nc6 {[%clk 00:02:57]}
{[%emt 00:00:06]} 7. e3 {[%clk 00:02:32]} {[%emt 00:00:05]} Be7 {[%clk
00:02:47]} {[%emt 00:00:12]} 8. Be2 {[%clk 00:02:19]} {[%emt 00:00:14]} O-O
{[%clk 00:02:47]} {[%emt 00:00:02]} 9. O-O {[%clk 00:02:20]} {[%emt 00:00:02]}
h6 {[%clk 00:02:32]} {[%emt 00:00:17]} 10. Bh4 {[%clk 00:02:08]} {[%emt
00:00:13]} d5 {[%clk 00:02:33]} {[%emt 00:00:01]} 11. cxd5 {[%clk 00:02:08]}
{[%emt 00:00:02]} Nxd5 {[%clk 00:02:34]} {[%emt 00:00:01]} 12. Bxe7 {[%clk
00:02:06]} {[%emt 00:00:05]} Ncxe7 {[%clk 00:02:31]} {[%emt 00:00:04]} 13. Nxd5
{[%clk 00:02:03]} {[%emt 00:00:05]} Nxd5 {[%clk 00:02:29]} {[%emt 00:00:04]} 14.
Rc1 {[%clk 00:02:02]} {[%emt 00:00:03]} e5 {[%clk 00:02:23]} {[%emt 00:00:09]}
15. Nf3 {[%clk 00:01:53]} {[%emt 00:00:10]} e4 {[%clk 00:01:30]} {[%emt
00:00:56]} 16. Nd4 {[%clk 00:01:37]} {[%emt 00:00:17]} Bd7 {[%clk 00:01:25]}
{[%emt 00:00:07]} 17. Qb3 {[%clk 00:01:33]} {[%emt 00:00:06]} Nf6 {[%clk
00:01:19]} {[%emt 00:00:08]} 18. Qxb7 {[%clk 00:01:21]} {[%emt 00:00:14]} Rb8
{[%clk 00:01:19]} {[%emt 00:00:01]} 19. Qxa6 {[%clk 00:01:21]} {[%emt
00:00:02]} Rxb2 {[%clk 00:01:21]} 20. Rb1 {[%clk 00:01:17]} {[%emt 00:00:05]}
Qb8 {[%clk 00:01:14]} {[%emt 00:00:09]} 21. Rxb2 {[%clk 00:00:51]} {[%emt
00:00:28]} Qxb2 {[%clk 00:01:15]} 22. Bc4 {[%clk 00:00:46]} {[%emt 00:00:07]}
Bc8 {[%clk 00:00:53]} {[%emt 00:00:24]} 23. Qa7 {[%clk 00:00:42]} {[%emt
00:00:05]} Bb7 {[%clk 00:00:53]} {[%emt 00:00:04]} 24. Nf5 {[%clk 00:00:35]}
{[%emt 00:00:09]} Kh7 {[%clk 00:00:06]} {[%emt 00:00:47]} 25. Nd6 {[%clk
00:00:32]} {[%emt 00:00:05]} Bd5 {[%clk 00:00:00]} {[%emt 00:00:08]} 1-0

[Event "MČR v bleskovém šachu družstev 2019"]
[Site "Teplice, Czech Republic"]
[Date "2019.09.14"]
[Round "3.11"]
[White "Marsalek, Zdenek"]
[Black "Kovar, Vojtech"]
[Result "1-0"]
[TimeControl "3 mim. + 2 s"]
[WhiteElo "2272"]
[BlackElo "2247"]

1. d4 {[%clk 00:03:02]} {[%emt 00:21:22]} d5 {[%clk 00:03:01]} {[%emt
00:00:18]} 2. Nf3 {[%clk 00:03:03]} {[%emt 00:00:01]} Nf6 {[%clk 00:03:02]}
{[%emt 00:00:01]} 3. g3 {[%clk 00:03:04]} c6 {[%clk 00:03:03]} 4. Bg2 {[%clk
00:03:05]} h5 {[%clk 00:03:05]} 5. c4 {[%clk 00:03:04]} {[%emt 00:00:05]} dxc4
{[%clk 00:03:02]} {[%emt 00:00:04]} 6. a4 {[%clk 00:03:03]} {[%emt 00:00:03]}
Bf5 {[%clk 00:03:01]} {[%emt 00:00:04]} 7. Na3 {[%clk 00:03:00]} {[%emt
00:00:05]} e6 {[%clk 00:03:00]} {[%emt 00:00:03]} 8. Nxc4 {[%clk 00:02:59]}
{[%emt 00:00:02]} Nbd7 {[%clk 00:03:01]} {[%emt 00:00:01]} 9. Qb3 {[%clk
00:02:53]} {[%emt 00:00:08]} Nb6 {[%clk 00:03:01]} {[%emt 00:00:02]} 10. O-O
{[%clk 00:02:45]} {[%emt 00:00:09]} Nxc4 {[%clk 00:02:57]} {[%emt 00:00:06]} 11.
Qxc4 {[%clk 00:02:46]} {[%emt 00:00:02]} Qd5 {[%clk 00:02:59]} 12. b3 {[%clk
00:02:34]} {[%emt 00:00:14]} Be4 {[%clk 00:02:58]} {[%emt 00:00:03]} 13. Bf4
{[%clk 00:02:19]} {[%emt 00:00:17]} a5 {[%clk 00:02:58]} {[%emt 00:00:03]} 14.
Rfd1 {[%clk 00:02:17]} {[%emt 00:00:03]} Bb4 {[%clk 00:02:58]} {[%emt
00:00:02]} 15. Rac1 {[%clk 00:02:15]} {[%emt 00:00:04]} Rd8 {[%clk 00:02:45]}
{[%emt 00:00:15]} 16. Be5 {[%clk 00:02:11]} {[%emt 00:00:06]} O-O {[%clk
00:02:30]} {[%emt 00:00:17]} 17. Bxf6 {[%clk 00:02:07]} {[%emt 00:00:06]} gxf6
{[%clk 00:02:31]} {[%emt 00:00:01]} 18. Nh4 {[%clk 00:01:52]} {[%emt 00:00:17]}
Bxg2 {[%clk 00:02:29]} {[%emt 00:00:04]} 19. Nxg2 {[%clk 00:01:52]} {[%emt
00:00:02]} Qxc4 {[%clk 00:02:30]} {[%emt 00:00:01]} 20. bxc4 {[%clk 00:01:48]}
{[%emt 00:00:06]} Kg7 {[%clk 00:01:56]} {[%emt 00:00:36]} 21. h4 {[%clk
00:01:48]} {[%emt 00:00:02]} Rd7 {[%clk 00:01:55]} {[%emt 00:00:03]} 22. Nf4
{[%clk 00:01:48]} {[%emt 00:00:01]} Kh6 {[%clk 00:01:57]} {[%emt 00:00:01]} 23.
d5 {[%clk 00:01:37]} {[%emt 00:00:13]} Rfd8 {[%clk 00:01:55]} {[%emt 00:00:03]}
24. e4 {[%clk 00:01:35]} {[%emt 00:00:04]} e5 {[%clk 00:01:47]} {[%emt
00:00:11]} 25. Nd3 {[%clk 00:01:28]} {[%emt 00:00:08]} c5 {[%clk 00:01:48]}
{[%emt 00:00:01]} 26. Kg2 {[%clk 00:01:24]} {[%emt 00:00:06]} b6 {[%clk
00:01:48]} {[%emt 00:00:02]} 27. Rc2 {[%clk 00:01:18]} {[%emt 00:00:08]} Re8
{[%clk 00:01:48]} {[%emt 00:00:02]} 28. Nc1 {[%clk 00:01:17]} {[%emt 00:00:03]}
Rd6 {[%clk 00:01:48]} {[%emt 00:00:02]} 29. Rd3 {[%clk 00:01:18]} f5 {[%clk
00:01:47]} {[%emt 00:00:03]} 30. exf5 {[%clk 00:01:17]} {[%emt 00:00:03]} e4
{[%clk 00:01:48]} 31. Re3 {[%clk 00:01:14]} {[%emt 00:00:05]} Rf6 {[%clk
00:01:45]} {[%emt 00:00:06]} 32. Rce2 {[%clk 00:01:15]} {[%emt 00:00:02]} Rxf5
{[%clk 00:01:46]} {[%emt 00:00:01]} 33. Rxe4 {[%clk 00:01:15]} {[%emt
00:00:01]} Rxe4 {[%clk 00:01:41]} {[%emt 00:00:06]} 34. Rxe4 {[%clk 00:01:17]}
{[%emt 00:00:01]} Rf6 {[%clk 00:01:41]} {[%emt 00:00:03]} 35. Nd3 {[%clk
00:01:17]} {[%emt 00:00:01]} Bc3 {[%clk 00:01:41]} {[%emt 00:00:02]} 36. Nf4
{[%clk 00:01:13]} {[%emt 00:00:06]} Bd4 {[%clk 00:01:37]} {[%emt 00:00:06]} 37.
Re8 {[%clk 00:01:12]} {[%emt 00:00:04]} b5 {[%clk 00:01:33]} {[%emt 00:00:06]}
38. axb5 {[%clk 00:01:09]} {[%emt 00:00:06]} Rb6 {[%clk 00:01:29]} {[%emt
00:00:05]} 39. Ra8 {[%clk 00:01:07]} {[%emt 00:00:04]} Bc3 {[%clk 00:01:30]}
{[%emt 00:00:01]} 40. Nd3 {[%clk 00:01:02]} {[%emt 00:00:06]} Bb4 {[%clk
00:01:28]} {[%emt 00:00:05]} 41. Ra6 {[%clk 00:01:03]} {[%emt 00:00:01]} 1-0

[Event "MČR v bleskovém šachu družstev 2019"]
[Site "Teplice, Czech Republic"]
[Date "2019.09.14"]
[Round "3.12"]
[White "Ocelak, Jakub"]
[Black "Duran, Tomas"]
[Result "0-1"]
[TimeControl "3 mim. + 2 s"]
[WhiteElo "1705"]
[BlackElo "2135"]

1. e4 {[%clk 00:03:02]} {[%emt 00:00:02]} d6 {[%clk 00:03:03]} {[%emt
00:00:02]} 2. d4 {[%clk 00:03:01]} {[%emt 00:00:03]} Nf6 {[%clk 00:03:03]}
{[%emt 00:00:01]} 3. Nc3 {[%clk 00:03:02]} e5 {[%clk 00:03:05]} {[%emt
00:00:02]} 4. dxe5 {[%clk 00:03:01]} {[%emt 00:00:03]} dxe5 {[%clk 00:03:06]} 5.
Qxd8+ Kxd8 {[%clk 00:03:07]} 6. Bg5 {[%clk 00:03:01]} {[%emt 00:00:01]} Be6
{[%clk 00:03:06]} {[%emt 00:00:03]} 7. Nf3 {[%clk 00:02:57]} {[%emt 00:00:06]}
Nbd7 {[%clk 00:03:05]} {[%emt 00:00:03]} 8. O-O-O {[%clk 00:02:56]} {[%emt
00:00:04]} Bd6 {[%clk 00:02:54]} {[%emt 00:00:12]} 9. Be2 {[%clk 00:02:38]}
{[%emt 00:00:20]} a6 {[%clk 00:02:51]} {[%emt 00:00:05]} 10. Bxf6+ {[%clk
00:02:24]} {[%emt 00:00:15]} gxf6 {[%clk 00:02:49]} {[%emt 00:00:04]} 11. Nh4
{[%clk 00:02:23]} {[%emt 00:00:03]} Bc5 {[%clk 00:02:22]} {[%emt 00:00:29]} 12.
Rhf1 {[%clk 00:01:54]} {[%emt 00:00:31]} Rg8 {[%clk 00:02:18]} {[%emt
00:00:07]} 13. g3 {[%clk 00:01:54]} {[%emt 00:00:01]} Bh3 {[%clk 00:02:13]}
{[%emt 00:00:06]} 14. Rh1 {[%emt 00:00:16]} Bxf2 {[%clk 00:02:13]} 15. Bf1
{[%clk 00:01:41]} {[%emt 00:00:03]} Bg4 {[%clk 00:02:08]} {[%emt 00:00:07]} 16.
Rd3 {[%clk 00:01:35]} {[%emt 00:00:08]} Ke8 {[%clk 00:01:59]} {[%emt 00:00:10]}
17. Nd5 {[%clk 00:01:30]} {[%emt 00:00:07]} Rc8 {[%clk 00:01:55]} {[%emt
00:00:05]} 18. h3 {[%clk 00:01:19]} {[%emt 00:00:13]} Be6 {[%clk 00:01:50]}
{[%emt 00:00:07]} 19. Rh2 {[%clk 00:01:15]} {[%emt 00:00:06]} Bxg3 {[%clk
00:01:47]} {[%emt 00:00:05]} 20. Rg2 {[%clk 00:01:17]} Bxd5 {[%clk 00:01:22]}
{[%emt 00:00:27]} 21. exd5 {[%clk 00:01:07]} {[%emt 00:00:12]} Bf4+ {[%clk
00:01:21]} {[%emt 00:00:03]} 22. Kb1 {[%clk 00:01:06]} {[%emt 00:00:02]} Rxg2
{[%clk 00:01:19]} {[%emt 00:00:05]} 23. Nxg2 {[%clk 00:01:07]} {[%emt
00:00:02]} Bh6 {[%clk 00:01:09]} {[%emt 00:00:11]} 24. Rg3 {[%clk 00:00:52]}
{[%emt 00:00:17]} Kf8 {[%clk 00:00:59]} {[%emt 00:00:12]} 25. Bd3 {[%clk
00:00:50]} {[%emt 00:00:03]} Nb6 {[%clk 00:00:45]} {[%emt 00:00:16]} 26. Bxh7
{[%clk 00:00:39]} {[%emt 00:00:14]} Ke7 {[%clk 00:00:33]} {[%emt 00:00:14]} 27.
Nh4 {[%clk 00:00:40]} {[%emt 00:00:01]} Bf4 {[%clk 00:00:27]} {[%emt 00:00:08]}
28. Nf5+ {[%clk 00:00:32]} {[%emt 00:00:10]} Kd7 {[%clk 00:00:28]} {[%emt
00:00:01]} 29. Rd3 {[%clk 00:00:32]} {[%emt 00:00:02]} Rh8 {[%clk 00:00:28]}
{[%emt 00:00:02]} 30. b3 {[%clk 00:00:10]} {[%emt 00:00:24]} Rxh7 {[%emt
00:00:02]} 31. c4 {[%clk 00:00:11]} Nc8 {[%clk 00:00:17]} {[%emt 00:00:13]} 32.
Kc2 {[%clk 00:00:09]} {[%emt 00:00:04]} b6 {[%clk 00:00:15]} {[%emt 00:00:04]}
33. b4 {[%clk 00:00:07]} {[%emt 00:00:03]} Rh5 {[%clk 00:00:15]} {[%emt
00:00:03]} 34. Ng7 {[%clk 00:00:07]} {[%emt 00:00:02]} Rg5 {[%clk 00:00:15]}
{[%emt 00:00:02]} 35. c5 {[%clk 00:00:05]} {[%emt 00:00:04]} Rxg7 {[%clk
00:00:14]} {[%emt 00:00:03]} 36. cxb6 {[%clk 00:00:04]} {[%emt 00:00:03]} Nxb6
{[%clk 00:00:15]} {[%emt 00:00:01]} 37. Kb3 {[%clk 00:00:04]} {[%emt 00:00:02]}
Kd6 {[%clk 00:00:15]} {[%emt 00:00:01]} 38. a4 {[%clk 00:00:03]} {[%emt
00:00:03]} Rg3 {[%clk 00:00:15]} {[%emt 00:00:02]} 0-1